[Event "Torneo Nuevo Centro. Jornada 10"]
[Site "Chess.com"]
[Date "2020.08.21"]
[Round "4"]
[White "Perrot, Fabien "]
[Black "Maestre Soler, Sergio"]
[Result "1-0"]
[WhiteElo "1114"]
[BlackElo "915"]
[TimeControl "180+2"]
[EndTime "11:08:26 PDT"]
[Termination "Victoria de InspiredMinds por tiempo"]

1. d4 {[%clk 0:03:00.2]} 1... e5 {[%clk 0:02:59.9]} 2. dxe5 {[%clk 0:02:55.6]}
2... Nc6 {[%clk 0:02:53.3]} 3. Nf3 {[%clk 0:02:55.2]} 3... d6 {[%clk 0:02:46.3]}
4. exd6 {[%clk 0:02:53.2]} 4... cxd6 {[%clk 0:02:44.6]} 5. e3 {[%clk 0:02:45.3]}
5... Nf6 {[%clk 0:01:41.6]} 6. Bb5 {[%clk 0:02:43.5]} 6... a6 {[%clk 0:00:53.3]}
7. Ba4 {[%clk 0:02:38.2]} 7... b5 {[%clk 0:00:21.4]} 8. Bb3 {[%clk 0:02:38.6]}
8... b4 {[%clk 0:00:14.3]} 9. Ng5 {[%clk 0:02:36]} 9... h6 {[%clk 0:00:13.8]}
10. Nxf7 {[%clk 0:02:35.9]} 10... Qe7 {[%clk 0:00:10.8]} 11. Nxh8 {[%clk
0:02:32.9]} 1

[Event "Torneo Nuevo Centro. Jornada 10"]
[Site "Chess.com"]
[Date "2020.08.21"]
[Round "4"]
[White "Soliva Ruiz, Ramon"]
[Black "Carbonell Bofill, Carlos Eloy"]
[Result "0-1"]
[WhiteElo "1502"]
[BlackElo "1920"]
[TimeControl "180+2"]
[EndTime "11:08:45 PDT"]
[Termination "Victoria de MFCARLOS por abandono"]

1. d4 {[%clk 0:03:01.9]} 1... Nf6 {[%clk 0:02:59.3]} 2. Bf4 {[%clk 0:02:10.9]}
2... c5 {[%clk 0:02:58.1]} 3. e3 {[%clk 0:02:10.9]} 3... Qb6 {[%clk 0:02:58.4]}
4. Nd2 {[%clk 0:02:03.1]} 4... cxd4 {[%clk 0:02:55]} 5. exd4 {[%clk 0:02:03.7]}
5... Qxd4 {[%clk 0:02:47.2]} 6. Be3 {[%clk 0:02:03.4]} 6... Qxb2 {[%clk
0:02:46.9]} 7. Rb1 {[%clk 0:02:04]} 7... Qxa2 {[%clk 0:02:47]} 8. Bc4 {[%clk
0:02:03.4]} 8... Qa5 {[%clk 0:02:45.9]} 9. Rb5 {[%clk 0:02:00.9]} 9... Qd8
{[%clk 0:02:43.1]} 10. Ngf3 {[%clk 0:02:00.8]} 10... d5 {[%clk 0:02:43.4]} 11.
Bb3 {[%clk 0:01:39]} 11... Nc6 {[%clk 0:02:43.3]} 12. Nb1 {[%clk 0:01:22.6]}
12... e6 {[%clk 0:02:42.7]} 13. Ba4 {[%clk 0:01:10.2]} 13... Bb4+ {[%clk
0:02:35.7]} 14. c3 {[%clk 0:01:10.8]} 14... Ba5 {[%clk 0:02:27.8]} 15. Bc5
{[%clk 0:00:53.7]} 15... Ne4 {[%clk 0:02:24.6]} 16. Qd3 {[%clk 0:00:29.9]} 16...
a6 {[%clk 0:02:22.6]} 17. Rb3 {[%clk 0:00:26.7]} 17... Nxc5 {[%clk 0:02:21.8]}
0

[Event "Torneo Nuevo Centro. Jornada 10"]
[Site "Chess.com"]
[Date "2020.08.21"]
[Round "4"]
[White "Fente Fernandez, Jose Ignacio"]
[Black "Conon, Catalin"]
[Result "0-1"]
[WhiteElo "1540"]
[BlackElo "1919"]
[TimeControl "180+2"]
[EndTime "11:09:05 PDT"]
[Termination "Victoria de CatalinConon por abandono"]

1. e4 {[%clk 0:03:01.9]} 1... c5 {[%clk 0:02:56.6]} 2. Nf3 {[%clk 0:03:02.5]}
2... Nc6 {[%clk 0:02:53.5]} 3. d4 {[%clk 0:03:03.1]} 3... cxd4 {[%clk
0:02:55.4]} 4. Nxd4 {[%clk 0:03:04.6]} 4... e5 {[%clk 0:02:56.8]} 5. Nb5 {[%clk
0:03:03.8]} 5... a6 {[%clk 0:02:53.8]} 6. Nd6+ {[%clk 0:03:03.4]} 6... Bxd6
{[%clk 0:02:55.1]} 7. Qxd6 {[%clk 0:03:05]} 7... Qf6 {[%clk 0:02:57]} 8. Qd1
{[%clk 0:02:57.1]} 8... Qg6 {[%clk 0:02:57.8]} 9. Nc3 {[%clk 0:02:56.2]} 9...
Nf6 {[%clk 0:02:58]} 10. f3 {[%clk 0:02:54]} 10... d5 {[%clk 0:02:58.5]} 11.
exd5 {[%clk 0:02:52.8]} 11... Nb4 {[%clk 0:02:59.5]} 12. a3 {[%clk 0:02:46.5]}
12... Nxc2+ {[%clk 0:02:59.4]} 13. Ke2 {[%clk 0:02:41.8]} 13... Nxa1 {[%clk
0:03:01.3]} 14. Ke1 {[%clk 0:01:55.5]} 14... Qc2 {[%clk 0:03:01.9]} 15. Qe2
{[%clk 0:01:51.3]} 15... Qxe2+ {[%clk 0:03:01.6]} 16. Bxe2 {[%clk 0:01:53.2]}
16... Nc2+ {[%clk 0:03:02.6]} 17. Kf2 {[%clk 0:01:50.2]} 17... Nd4 {[%clk
0:03:03.9]} 18. Bd3 {[%clk 0:01:49.6]} 18... O-O {[%clk 0:03:03.4]} 19. Re1
{[%clk 0:01:47.5]} 19... Re8 {[%clk 0:03:00.3]} 20. Bg5 {[%clk 0:01:38.4]} 20...
Bf5 {[%clk 0:03:01]} 21. Bxf5 {[%clk 0:01:35.5]} 21... Nxf5 {[%clk 0:03:02.9]}
22. Bxf6 {[%clk 0:01:35.6]} 22... gxf6 {[%clk 0:03:04.8]} 23. Ne4 {[%clk
0:01:35.3]} 23... Kg7 {[%clk 0:03:05]} 24. d6 {[%clk 0:01:31.6]} 24... Red8
{[%clk 0:03:05.4]} 25. Rd1 {[%clk 0:01:24.5]} 25... Rac8 {[%clk 0:03:05.7]} 26.
d7 {[%clk 0:01:22.4]} 26... Rc7 {[%clk 0:03:06.3]} 27. g4 {[%clk 0:01:19.3]}
27... Nd4 {[%clk 0:03:06.4]} 28. g5 {[%clk 0:01:15.4]} 28... f5 {[%clk
0:03:06.8]} 29. Nf6 {[%clk 0:01:15.6]} 29... Rc2+ {[%clk 0:02:42.9]} 30. Kg3
{[%clk 0:01:14.2]} 30... h6 {[%clk 0:02:43.4]} 31. h4 {[%clk 0:01:14.3]} 31...
Ne2+ {[%clk 0:02:29.3]} 32. Kh3 {[%clk 0:01:07.8]} 32... Nf4+ {[%clk 0:02:30.6]}
0

[Event "Torneo Nuevo Centro. Jornada 10"]
[Site "Chess.com"]
[Date "2020.08.21"]
[Round "4"]
[White "Polikarpov, Anton"]
[Black "Birnoveanu, Petru"]
[Result "0-1"]
[WhiteElo "1217"]
[BlackElo "1713"]
[TimeControl "180+2"]
[EndTime "11:09:19 PDT"]
[Termination "Victoria de piculet por jaque mate"]

1. e4 {[%clk 0:03:01.9]} 1... Nc6 {[%clk 0:02:59.7]} 2. Nf3 {[%clk 0:03:02.4]}
2... f5 {[%clk 0:02:59.5]} 3. exf5 {[%clk 0:02:59]} 3... d5 {[%clk 0:03:00.1]}
4. Bb5 {[%clk 0:02:58.4]} 4... Bxf5 {[%clk 0:03:00]} 5. Ne5 {[%clk 0:02:56.8]}
5... Qd6 {[%clk 0:03:00.4]} 6. Nxc6 {[%clk 0:02:55.8]} 6... bxc6 {[%clk
0:03:00.4]} 7. Ba4 {[%clk 0:02:54.3]} 7... e5 {[%clk 0:03:00.2]} 8. Qf3 {[%clk
0:02:52.4]} 8... g6 {[%clk 0:02:51.6]} 9. g4 {[%clk 0:02:51.5]} 9... Bd7 {[%clk
0:02:48.1]} 10. d4 {[%clk 0:02:37.2]} 10... e4 {[%clk 0:02:47.6]} 11. Qe3 {[%clk
0:02:29.2]} 11... Bxg4 {[%clk 0:02:37.7]} 12. Qg5 {[%clk 0:02:27.1]} 12... Bf3
{[%clk 0:02:34.5]} 13. Bf4 {[%clk 0:02:23.5]} 13... Qd7 {[%clk 0:02:17.9]} 14.
Qe5+ {[%clk 0:02:18.9]} 14... Ne7 {[%clk 0:02:07.4]} 15. Qxh8 {[%clk 0:02:17.7]}
15... Bxh1 {[%clk 0:02:07.3]} 16. Qxh7 {[%clk 0:02:13.7]} 16... Bf3 {[%clk
0:02:03.2]} 17. Nc3 {[%clk 0:02:04.3]} 17... Qg4 {[%clk 0:01:57.2]} 18. Nxd5
{[%clk 0:01:45]} 18... Qg1+ {[%clk 0:01:50.9]} 19. Kd2 {[%clk 0:01:41.6]} 19...
Qxf2+ {[%clk 0:01:51.4]} 20. Kc3 {[%clk 0:01:38]} 20... Nxd5+ {[%clk 0:01:49.7]}
21. Kc4 {[%clk 0:01:33.9]} 21... Be2+ {[%clk 0:01:46.9]} 22. Kb3 {[%clk
0:01:28.9]} 22... Rb8+ {[%clk 0:01:39]} 23. Bb5 {[%clk 0:01:15.5]} 23... Rxb5+
{[%clk 0:01:35.8]} 24. Ka4 {[%clk 0:01:16]} 24... Qxd4+ {[%clk 0:01:33.5]} 25.
b4 {[%clk 0:01:08.2]} 25... Qxb4# {[%clk 0:01:33.2]} 0

[Event "Torneo Nuevo Centro. Jornada 10"]
[Site "Chess.com"]
[Date "2020.08.21"]
[Round "4"]
[White "Ledezma Fortes, Jose Manuel"]
[Black "Pardo Ruiz, Beatriz"]
[Result "1-0"]
[WhiteElo "1800"]
[BlackElo "1335"]
[TimeControl "180+2"]
[EndTime "11:09:36 PDT"]
[Termination "Victoria de josema54 por tiempo"]

1. c4 {[%clk 0:03:01.9]} 1... e5 {[%clk 0:02:59.3]} 2. Nf3 {[%clk 0:02:59.4]}
2... Nc6 {[%clk 0:02:54.2]} 3. Nc3 {[%clk 0:02:59.5]} 3... Nf6 {[%clk
0:02:25.6]} 4. d3 {[%clk 0:03:00.2]} 4... Bc5 {[%clk 0:02:20.6]} 5. Bg5 {[%clk
0:02:56.2]} 5... h6 {[%clk 0:02:20]} 6. Bxf6 {[%clk 0:02:56.3]} 6... Qxf6 {[%clk
0:02:19.3]} 7. Ne4 {[%clk 0:02:56.9]} 7... Qe7 {[%clk 0:02:16.7]} 8. a3 {[%clk
0:02:56.1]} 8... O-O {[%clk 0:02:10.3]} 9. e3 {[%clk 0:02:56.5]} 9... Bb6 {[%clk
0:02:02.2]} 10. Be2 {[%clk 0:02:56.1]} 10... d6 {[%clk 0:01:59.3]} 11. b4 {[%clk
0:02:56]} 11... Nd8 {[%clk 0:01:53]} 12. O-O {[%clk 0:02:56.5]} 12... Ne6 {[%clk
0:01:46.6]} 13. a4 {[%clk 0:02:56.9]} 13... a5 {[%clk 0:01:44.2]} 14. b5 {[%clk
0:02:55.8]} 14... Ng5 {[%clk 0:01:36.9]} 15. Nfxg5 {[%clk 0:02:54.3]} 15... hxg5
{[%clk 0:01:38.8]} 16. Nc3 {[%clk 0:02:51]} 16... Be6 {[%clk 0:01:30.5]} 17. Bf3
{[%clk 0:02:50.5]} 17... Ra7 {[%clk 0:01:12.8]} 18. Qd2 {[%clk 0:02:49]} 18...
Rd8 {[%clk 0:01:05.2]} 19. Rae1 {[%clk 0:02:45.7]} 19... Qf6 {[%clk 0:00:54]}
20. Ne4 {[%clk 0:02:44.6]} 20... Qh6 {[%clk 0:00:44.9]} 21. Qe2 {[%clk
0:02:44.6]} 21... Bf5 {[%clk 0:00:19.2]} 22. Ng3 {[%clk 0:02:43.9]} 22... Qg6
{[%clk 0:00:13.4]} 23. Nxf5 {[%clk 0:02:43.6]} 23... Qxf5 {[%clk 0:00:11.9]} 24.
Be4 {[%clk 0:02:44.3]} 24... Qf6 {[%clk 0:00:10]} 25. Qg4 {[%clk 0:02:41.6]}
25... Qh6 {[%clk 0:00:08]} 26. h3 {[%clk 0:02:35.2]} 26... Qf6 {[%clk
0:00:03.4]} 27. Kh2 {[%clk 0:02:34.9]} 27... Qe7 {[%clk 0:00:02.1]} 28. Qh5
{[%clk 0:02:34.3]} 1

[Event "Torneo Nuevo Centro. Jornada 10"]
[Site "Chess.com"]
[Date "2020.08.21"]
[Round "4"]
[White "Gukasov, Artem"]
[Black "Roca Cruz, Rafael"]
[Result "1-0"]
[WhiteElo "1461"]
[BlackElo "1820"]
[TimeControl "180+2"]
[EndTime "11:09:48 PDT"]
[Termination "Victoria de ArtemGukasov por tiempo"]

1. e4 {[%clk 0:03:01]} 1... c5 {[%clk 0:02:54.5]} 2. Nf3 {[%clk 0:02:55]} 2...
e6 {[%clk 0:02:55]} 3. d4 {[%clk 0:02:47.7]} 3... cxd4 {[%clk 0:02:54.5]} 4.
Nxd4 {[%clk 0:02:38.5]} 4... Nf6 {[%clk 0:02:55.6]} 5. Nc3 {[%clk 0:02:31.9]}
5... Bb4 {[%clk 0:02:56.1]} 6. Bd2 {[%clk 0:02:27]} 6... d5 {[%clk 0:02:52.9]}
7. exd5 {[%clk 0:02:18.6]} 7... Nxd5 {[%clk 0:02:50.7]} 8. Nxd5 {[%clk
0:02:15.8]} 8... Bxd2+ {[%clk 0:02:51.2]} 9. Qxd2 {[%clk 0:02:10.6]} 9... Qxd5
{[%clk 0:02:50.6]} 10. c4 {[%clk 0:02:02.4]} 10... Qe4+ {[%clk 0:02:30.8]} 11.
Be2 {[%clk 0:01:57.2]} 11... Qxg2 {[%clk 0:01:00.6]} 12. Rf1 {[%clk 0:01:55.4]}
12... h6 {[%clk 0:00:26]} 13. Nb5 {[%clk 0:01:53.6]} 13... O-O {[%clk
0:00:16.3]} 14. Nc7 {[%clk 0:01:45.9]} 14... Na6 {[%clk 0:00:09]} 15. Nxa8
{[%clk 0:01:42.5]} 15... Qc6 {[%clk 0:00:09.3]} 16. b4 {[%clk 0:01:37.6]} 1

[Event "Torneo Nuevo Centro. Jornada 10"]
[Site "Chess.com"]
[Date "2020.08.21"]
[Round "4"]
[White "Gómez Alonso, Óscar"]
[Black "Yatseta Fernandez, Marc Kazymyr"]
[Result "1-0"]
[WhiteElo "1844"]
[BlackElo "1456"]
[TimeControl "180+2"]
[EndTime "11:10:36 PDT"]
[Termination "Victoria de osgo78 por abandono"]

1. d4 {[%clk 0:03:00]} 1... Nf6 {[%clk 0:03:00]} 2. c4 {[%clk 0:03:00.8]} 2...
e5 {[%clk 0:03:01.4]} 3. dxe5 {[%clk 0:03:01.7]} 3... Ne4 {[%clk 0:03:02.6]} 4.
Nf3 {[%clk 0:02:56.9]} 4... Bb4+ {[%clk 0:02:53.3]} 5. Nbd2 {[%clk 0:02:57.4]}
5... d5 {[%clk 0:02:34.8]} 6. exd6 {[%clk 0:02:40.7]} 6... Qxd6 {[%clk
0:02:33.9]} 7. a3 {[%clk 0:02:40.9]} 7... Bxd2+ {[%clk 0:02:31.6]} 8. Nxd2
{[%clk 0:02:32.6]} 8... Nxd2 {[%clk 0:02:26.1]} 9. Qxd2 {[%clk 0:02:33.5]} 9...
Qxd2+ {[%clk 0:02:21.5]} 10. Bxd2 {[%clk 0:02:34.4]} 10... Nc6 {[%clk 0:02:22]}
11. Bc3 {[%clk 0:02:34.6]} 11... O-O {[%clk 0:02:21.5]} 12. g3 {[%clk
0:02:30.8]} 12... Be6 {[%clk 0:02:16.3]} 13. b3 {[%clk 0:02:30.3]} 13... Rad8
{[%clk 0:02:07.3]} 14. Bg2 {[%clk 0:02:31.1]} 14... Nd4 {[%clk 0:01:58.8]} 15.
Bxd4 {[%clk 0:02:31.6]} 15... Rxd4 {[%clk 0:01:59.6]} 16. Rd1 {[%clk 0:02:30.5]}
16... Rfd8 {[%clk 0:01:51.4]} 17. Rxd4 {[%clk 0:02:28.2]} 17... Rxd4 {[%clk
0:01:52.8]} 18. Bxb7 {[%clk 0:02:18.9]} 18... Bh3 {[%clk 0:01:45]} 19. f3 {[%clk
0:02:13.3]} 19... a5 {[%clk 0:01:43.3]} 20. Be4 {[%clk 0:02:10.5]} 20... a4
{[%clk 0:01:40.3]} 21. e3 {[%clk 0:01:54.5]} 21... Rd8 {[%clk 0:01:22.6]} 22. b4
{[%clk 0:01:50.9]} 22... Re8 {[%clk 0:01:08.8]} 23. Ke2 {[%clk 0:01:51.1]} 23...
g6 {[%clk 0:01:00.7]} 24. Rd1 {[%clk 0:01:48.4]} 24... Be6 {[%clk 0:00:55.3]}
25. Bd5 {[%clk 0:01:48.6]} 25... Bc8 {[%clk 0:00:35.6]} 26. Bc6 {[%clk
0:01:46.3]} 26... Rf8 {[%clk 0:00:33]} 27. Bxa4 {[%clk 0:01:46.5]} 27... f5
{[%clk 0:00:33.3]} 28. Bb3 {[%clk 0:01:46.8]} 28... Kg7 {[%clk 0:00:33.5]} 29.
c5 {[%clk 0:01:45.2]} 29... Ba6+ {[%clk 0:00:31.1]} 30. Kf2 {[%clk 0:01:45.9]}
30... c6 {[%clk 0:00:23.5]} 31. Rd7+ {[%clk 0:01:45.4]} 31... Kh6 {[%clk
0:00:21.4]} 32. Rd6 {[%clk 0:01:45.1]} 1

[Event "Torneo Nuevo Centro. Jornada 10"]
[Site "Chess.com"]
[Date "2020.08.21"]
[Round "4"]
[White "Mangues Rubia, Alex"]
[Black "Rausell Taberner, Diego"]
[Result "1-0"]
[WhiteElo "1553"]
[BlackElo "676"]
[TimeControl "180+2"]
[EndTime "11:10:47 PDT"]
[Termination "Victoria de Rexher73 por jaque mate"]

1. d4 {[%clk 0:03:01.9]} 1... d5 {[%clk 0:03:00.4]} 2. Bf4 {[%clk 0:02:59.7]}
2... Bf5 {[%clk 0:03:00.2]} 3. e3 {[%clk 0:02:59.4]} 3... e6 {[%clk 0:02:58.7]}
4. c4 {[%clk 0:02:58.5]} 4... dxc4 {[%clk 0:02:56.4]} 5. Bxc4 {[%clk 0:02:58.4]}
5... Bb4+ {[%clk 0:02:56]} 6. Nc3 {[%clk 0:02:58]} 6... Be4 {[%clk 0:02:51.6]}
7. Nf3 {[%clk 0:02:50.2]} 7... Nf6 {[%clk 0:02:50.3]} 8. Qb3 {[%clk 0:02:47.9]}
8... Nc6 {[%clk 0:02:45.8]} 9. O-O {[%clk 0:02:18.5]} 9... O-O {[%clk
0:02:45.8]} 10. Ne5 {[%clk 0:02:16.3]} 10... h6 {[%clk 0:02:18.1]} 11. Nxc6
{[%clk 0:02:13.2]} 11... bxc6 {[%clk 0:02:17.1]} 12. Qxb4 {[%clk 0:02:14]} 12...
Rb8 {[%clk 0:02:15]} 13. Qa5 {[%clk 0:02:00.1]} 13... Rxb2 {[%clk 0:02:10.9]}
14. Bxc7 {[%clk 0:01:46.1]} 14... Qd7 {[%clk 0:01:59.8]} 15. Bb3 {[%clk
0:01:40.1]} 15... Rd2 {[%clk 0:01:45.9]} 16. Na4 {[%clk 0:01:37.5]} 16... Bd3
{[%clk 0:01:34.1]} 17. Nc5 {[%clk 0:01:07.8]} 17... Qe8 {[%clk 0:01:25.7]} 18.
Qxd2 {[%clk 0:01:05.7]} 18... Bxf1 {[%clk 0:01:18.7]} 19. Rxf1 {[%clk
0:01:07.6]} 19... Qc8 {[%clk 0:01:13.5]} 20. Be5 {[%clk 0:00:57.7]} 20... Ng4
{[%clk 0:00:55.6]} 21. Qe2 {[%clk 0:00:52.3]} 21... Qd8 {[%clk 0:00:20.9]} 22.
Qxg4 {[%clk 0:00:46.8]} 22... f5 {[%clk 0:00:15.8]} 23. Qxg7# {[%clk 0:00:45.7]}
1

[Event "Torneo Nuevo Centro. Jornada 10"]
[Site "Chess.com"]
[Date "2020.08.21"]
[Round "4"]
[White "Gimenez Saiz, Jose Raul"]
[Black "Garrido Silos, Pablo"]
[Result "1-0"]
[WhiteElo "1886"]
[BlackElo "1454"]
[TimeControl "180+2"]
[EndTime "11:10:53 PDT"]
[Termination "Victoria de rango013 por jaque mate"]

1. d4 {[%clk 0:03:00]} 1... Nf6 {[%clk 0:03:00.3]} 2. e3 {[%clk 0:02:58.7]} 2...
g6 {[%clk 0:02:56.4]} 3. Bd3 {[%clk 0:02:59.6]} 3... d5 {[%clk 0:02:56.3]} 4. f4
{[%clk 0:03:00.2]} 4... Bg7 {[%clk 0:02:55.4]} 5. Nd2 {[%clk 0:02:59.4]} 5...
O-O {[%clk 0:02:55.8]} 6. Ngf3 {[%clk 0:02:59.9]} 6... Bg4 {[%clk 0:02:55.8]} 7.
O-O {[%clk 0:03:00.2]} 7... c6 {[%clk 0:02:55.6]} 8. h3 {[%clk 0:02:58.9]} 8...
Bxf3 {[%clk 0:02:55.6]} 9. Qxf3 {[%clk 0:02:56.1]} 9... Nbd7 {[%clk 0:02:55.9]}
10. c3 {[%clk 0:02:56.4]} 10... e6 {[%clk 0:02:55.8]} 11. e4 {[%clk 0:02:57]}
11... dxe4 {[%clk 0:02:55.5]} 12. Nxe4 {[%clk 0:02:57.6]} 12... Nxe4 {[%clk
0:02:56.1]} 13. Bxe4 {[%clk 0:02:56.1]} 13... Nf6 {[%clk 0:02:56.5]} 14. Bd3
{[%clk 0:02:49.1]} 14... Qd5 {[%clk 0:02:53]} 15. Qxd5 {[%clk 0:02:30]} 15...
Nxd5 {[%clk 0:02:54.9]} 16. Bd2 {[%clk 0:02:30.9]} 16... Rad8 {[%clk 0:02:44.9]}
17. a4 {[%clk 0:02:25.1]} 17... c5 {[%clk 0:02:40.5]} 18. dxc5 {[%clk
0:01:58.7]} 18... Nxf4 {[%clk 0:02:38.9]} 19. Bxf4 {[%clk 0:01:47.3]} 19... Rxd3
{[%clk 0:02:38.2]} 20. Rad1 {[%clk 0:01:45.9]} 20... Rfd8 {[%clk 0:02:37.1]} 21.
Bd6 {[%clk 0:01:41.7]} 21... Rxd1 {[%clk 0:02:33.8]} 22. Rxd1 {[%clk 0:01:41.9]}
22... Bf8 {[%clk 0:02:29.9]} 23. Rd4 {[%clk 0:01:19]} 23... Bxd6 {[%clk
0:02:29.1]} 24. Rxd6 {[%clk 0:01:15.7]} 24... Rxd6 {[%clk 0:02:29.9]} 25. cxd6
{[%clk 0:01:16.8]} 25... Kf8 {[%clk 0:02:30.2]} 26. b4 {[%clk 0:01:13.7]} 26...
Ke8 {[%clk 0:02:22.2]} 27. c4 {[%clk 0:01:14.6]} 27... Kd7 {[%clk 0:02:21.9]}
28. c5 {[%clk 0:01:15.7]} 28... b6 {[%clk 0:02:21.3]} 29. Kf2 {[%clk 0:01:15.5]}
29... bxc5 {[%clk 0:02:02.2]} 30. bxc5 {[%clk 0:01:15.2]} 30... Kc6 {[%clk
0:02:03]} 31. Ke3 {[%clk 0:01:14.2]} 31... f5 {[%clk 0:01:50.7]} 32. Kd4 {[%clk
0:01:14.2]} 32... g5 {[%clk 0:01:43.6]} 33. Ke5 {[%clk 0:01:14]} 33... g4 {[%clk
0:01:13.5]} 34. hxg4 {[%clk 0:01:05.9]} 34... fxg4 {[%clk 0:01:06.8]} 35. Kxe6
{[%clk 0:01:06.4]} 35... h5 {[%clk 0:01:07.2]} 36. d7 {[%clk 0:01:04.3]} 36...
h4 {[%clk 0:01:07.7]} 37. d8=Q {[%clk 0:01:02.7]} 37... a5 {[%clk 0:01:08.4]}
38. Qb6# {[%clk 0:01:00.5]} 1

[Event "Torneo Nuevo Centro. Jornada 10"]
[Site "Chess.com"]
[Date "2020.08.21"]
[Round "4"]
[White "Luque Saiz, Andrés"]
[Black "Orts Tomás, Marc"]
[Result "1/2-1/2"]
[WhiteElo "2040"]
[BlackElo "1862"]
[TimeControl "180+2"]
[EndTime "11:11:13 PDT"]
[Termination "Tablas por repeticiÃ³n"]

1. e4 {[%clk 0:03:01.9]} 1... c5 {[%clk 0:03:01.1]} 2. Nf3 {[%clk 0:03:02.4]}
2... Nc6 {[%clk 0:03:02.4]} 3. Bb5 {[%clk 0:03:02]} 3... g6 {[%clk 0:02:59.9]}
4. Bxc6 {[%clk 0:03:02.4]} 4... dxc6 {[%clk 0:03:00.4]} 5. d3 {[%clk 0:03:01.2]}
5... Bg7 {[%clk 0:03:00.8]} 6. O-O {[%clk 0:03:01.4]} 6... e5 {[%clk 0:03:02.1]}
7. Be3 {[%clk 0:03:01.3]} 7... Qe7 {[%clk 0:03:03.1]} 8. Nc3 {[%clk 0:02:52.7]}
8... Nf6 {[%clk 0:03:02.5]} 9. h3 {[%clk 0:02:53.4]} 9... Nd7 {[%clk 0:03:03.5]}
10. Nh2 {[%clk 0:02:52.5]} 10... Nf8 {[%clk 0:03:03]} 11. f4 {[%clk 0:02:53.2]}
11... exf4 {[%clk 0:03:04.2]} 12. Bxf4 {[%clk 0:02:55.1]} 12... Ne6 {[%clk
0:03:05.3]} 13. Be3 {[%clk 0:02:53.8]} 13... O-O {[%clk 0:03:06.3]} 14. Ng4
{[%clk 0:02:52]} 14... Nd4 {[%clk 0:03:06.9]} 15. Qd2 {[%clk 0:02:36.2]} 15...
f5 {[%clk 0:03:02.3]} 16. Bg5 {[%clk 0:02:26.9]} 16... Qc7 {[%clk 0:02:35.4]}
17. Nh6+ {[%clk 0:02:21]} 17... Kh8 {[%clk 0:02:24.7]} 18. Rae1 {[%clk
0:02:16.7]} 18... Bd7 {[%clk 0:02:10.9]} 19. exf5 {[%clk 0:02:02.9]} 19... Nxf5
{[%clk 0:02:10.7]} 20. Nxf5 {[%clk 0:02:02.8]} 20... Bxf5 {[%clk 0:01:57.3]} 21.
Re7 {[%clk 0:01:56.8]} 21... Qb6 {[%clk 0:01:58]} 22. Bh6 {[%clk 0:01:47.7]}
22... Bd4+ {[%clk 0:01:38.2]} 23. Kh2 {[%clk 0:01:38.8]} 23... Rfe8 {[%clk
0:01:38.1]} 24. Rfe1 {[%clk 0:01:02.3]} 24... Rxe7 {[%clk 0:01:37.5]} 25. Rxe7
{[%clk 0:01:04.2]} 25... Qxb2 {[%clk 0:01:38.9]} 26. Na4 {[%clk 0:00:53.1]}
26... Qb1 {[%clk 0:01:34.4]} 27. Bf8 {[%clk 0:00:22.7]} 27... Rxf8 {[%clk
0:01:04.9]} 28. Qh6 {[%clk 0:00:22.8]} 28... Qg1+ {[%clk 0:01:05.5]} 29. Kg3
{[%clk 0:00:23.7]} 29... Qf2+ {[%clk 0:01:06.4]} 30. Kh2 {[%clk 0:00:24.6]}
30... Qg1+ {[%clk 0:01:05]} 31. Kg3 {[%clk 0:00:25.5]} 31... Qf2+ {[%clk
0:00:47.6]} 32. Kh2 {[%clk 0:00:26.3]} 32... Qg1+ {[%clk 0:00:49.2]} 1/2-1

[Event "Torneo Nuevo Centro. Jornada 10"]
[Site "Chess.com"]
[Date "2020.08.21"]
[Round "4"]
[White "Chernikov, Vladimir"]
[Black "Serarols Mabras, Bernat"]
[Result "0-1"]
[WhiteElo "2210"]
[BlackElo "2375"]
[TimeControl "180+2"]
[EndTime "11:11:32 PDT"]
[Termination "Victoria de bernatserarols por jaque mate"]

1. c4 {[%clk 0:03:01.9]} 1... e6 {[%clk 0:02:59]} 2. Nf3 {[%clk 0:02:59.9]} 2...
d5 {[%clk 0:03:00.2]} 3. e3 {[%clk 0:03:01]} 3... Nf6 {[%clk 0:02:59.5]} 4. b3
{[%clk 0:03:01.4]} 4... Bd6 {[%clk 0:02:56.7]} 5. Bb2 {[%clk 0:03:02]} 5... c6
{[%clk 0:02:57.6]} 6. d4 {[%clk 0:03:02.8]} 6... O-O {[%clk 0:02:58.1]} 7. Bd3
{[%clk 0:03:03.7]} 7... Nbd7 {[%clk 0:02:57]} 8. Nbd2 {[%clk 0:03:03.7]} 8...
Qe7 {[%clk 0:02:54.7]} 9. O-O {[%clk 0:02:59.3]} 9... b6 {[%clk 0:02:53.5]} 10.
Ne5 {[%clk 0:02:57.6]} 10... Bb7 {[%clk 0:02:54.7]} 11. Rc1 {[%clk 0:02:56.4]}
11... c5 {[%clk 0:02:55.8]} 12. f4 {[%clk 0:02:45.6]} 12... Rac8 {[%clk
0:02:55.1]} 13. Ndf3 {[%clk 0:02:41.1]} 13... Rfd8 {[%clk 0:02:54.8]} 14. Ng5
{[%clk 0:02:34.9]} 14... cxd4 {[%clk 0:02:28.2]} 15. Nexf7 {[%clk 0:02:10]}
15... h6 {[%clk 0:02:22.2]} 16. Nxd8 {[%clk 0:02:00.5]} 16... Rxd8 {[%clk
0:02:24.1]} 17. Nf3 {[%clk 0:01:18.6]} 17... dxe3 {[%clk 0:02:24.1]} 18. Ne5
{[%clk 0:01:19.2]} 18... dxc4 {[%clk 0:02:05.8]} 19. Bxc4 {[%clk 0:00:25.4]}
19... Bc5 {[%clk 0:01:49.7]} 20. Qe2 {[%clk 0:00:23.2]} 20... Nxe5 {[%clk
0:01:45.5]} 21. Bxe5 {[%clk 0:00:20.5]} 21... Ne4 {[%clk 0:01:33.1]} 22. f5
{[%clk 0:00:19]} 22... Rd2 {[%clk 0:01:30.2]} 23. Qg4 {[%clk 0:00:15.4]} 23...
e2+ {[%clk 0:01:20.6]} 24. Kh1 {[%clk 0:00:16.7]} 24... exf1=Q+ {[%clk
0:01:20.9]} 25. Rxf1 {[%clk 0:00:18.4]} 25... Nf2+ {[%clk 0:01:08.1]} 26. Rxf2
{[%clk 0:00:19.4]} 26... Rxf2 {[%clk 0:01:08.7]} 27. f6 {[%clk 0:00:17.9]} 27...
Rxg2 {[%clk 0:00:59.8]} 28. Bxe6+ {[%clk 0:00:12.5]} 28... Qxe6 {[%clk
0:00:37.1]} 29. Qxe6+ {[%clk 0:00:11.1]} 29... Kh7 {[%clk 0:00:38.4]} 30. Qd7
{[%clk 0:00:06.2]} 30... Rg1# {[%clk 0:00:38.6]} 0